fUST/lending_fUST_20250614
["ID","MTS","AMOUNT","RATE_DAILY","PERIOD"]
[365784452,1749911440365,-460.0,0.00022191,4]
[365784453,1749911440375,-460.0,0.00022191,4]
[365784455,1749911440384,-460.0,0.00022191,4]
[365784457,1749911440394,-227.83763468,0.00022191,4]
[365784458,1749911440403,-490.0,0.00022191,4]
[365784459,1749911440413,-460.0,0.00022191,4]
[365784460,1749911440422,-460.0,0.00022191,4]
[365784461,1749911440432,-460.0,0.00022191,4]
[365784462,1749911440441,-460.0,0.00022191,4]
[365784463,1749911440451,-320.0,0.00022191,4]
[365784464,1749911440460,-460.0,0.00022191,4]
[365784465,1749911440470,-460.0,0.00022191,4]
[365784466,1749911440479,-460.0,0.00022191,4]
[365784467,1749911440488,-460.0,0.00022191,4]
[365784468,1749911440497,-460.0,0.00022191,4]
[365784469,1749911440507,-460.0,0.00022191,4]
[365784470,1749911440517,-160.0,0.00022191,4]
[365784471,1749911440526,-460.0,0.00022191,4]
[365784472,1749911440536,-460.0,0.00022191,4]
[365784473,1749911440545,-460.0,0.00022191,4]
[365784474,1749911440556,-460.0,0.00022191,4]
[365784475,1749911440566,-460.0,0.00022191,4]
[365784476,1749911440575,-460.0,0.00022191,4]
[365784477,1749911440584,-460.0,0.00022191,4]
[365784478,1749911440594,-460.0,0.00022191,4]
[365784479,1749911440603,-460.0,0.00022191,4]
[365784480,1749911440613,-460.0,0.00022191,4]
[365784481,1749911440622,-460.0,0.00022191,4]
[365784482,1749911440631,-460.0,0.00022191,4]
[365784483,1749911440640,-460.0,0.00022191,4]
[365784484,1749911440650,-160.0,0.00022191,4]
[365784485,1749911440659,-460.0,0.00022191,4]
[365784486,1749911440668,-460.0,0.00022191,4]
[365784487,1749911440677,-460.0,0.00022191,4]
[365784488,1749911440687,-460.0,0.00022191,4]
[365784489,1749911440696,-460.0,0.00022191,4]
[365784490,1749911440706,-460.0,0.00022191,4]
[365784491,1749911440715,-460.0,0.00022191,4]
[365784492,1749911440724,-460.0,0.00022191,4]
[365784493,1749911440733,-460.0,0.00022191,4]
[365784494,1749911440743,-264.65332849,0.00022191,4]
[365784495,1749911440752,-460.0,0.00022191,4]
[365784496,1749911440762,-460.0,0.00022191,4]
[365784497,1749911440771,-460.0,0.00022191,4]
[365784498,1749911440780,-460.0,0.00022191,4]
[365784499,1749911440790,-1073.86,0.00022191,4]
[365784500,1749911440801,-460.0,0.00022191,4]
[365784501,1749911440810,-460.0,0.00022191,4]
[365784502,1749911440820,-500.0,0.00022191,4]
[365784503,1749911440829,-460.0,0.00022191,4]
[365784504,1749911440838,-460.0,0.00022191,4]
[365784505,1749911440847,-845.69,0.00022191,4]
[365784506,1749911440857,-460.0,0.00022191,4]
[365784507,1749911440866,-460.0,0.00022191,4]
[365784508,1749911440876,-460.0,0.00022191,4]
[365784509,1749911440885,-460.0,0.00022191,4]
[365784510,1749911440894,-460.0,0.00022191,4]
[365784511,1749911440903,-460.0,0.00022191,4]
[365784512,1749911440912,-460.0,0.00022191,4]
[365784513,1749911440921,-519.94,0.00022191,4]
[365784514,1749911440931,-910.98,0.00022191,4]
[365784515,1749911440942,-460.0,0.00022191,4]
[365784516,1749911440952,-174.45383308,0.00022191,4]
[365784517,1749911440961,-460.0,0.00022191,4]
[365784518,1749911440971,-460.0,0.00022191,4]
[365784520,1749911440980,-420.0,0.00022191,4]
[365784522,1749911440990,-413.71564651,0.00022191,4]
[365784524,1749911440999,-460.0,0.00022191,4]
[365784526,1749911441009,-460.0,0.00022191,4]
[365784528,1749911441018,-460.0,0.00022191,4]
[365784530,1749911441027,-308.38289887,0.00022191,4]
[365784532,1749911441036,-460.0,0.00022191,4]
[365784534,1749911441045,-2925.06,0.00022191,4]
[365784536,1749911441054,-460.0,0.00022191,4]
[365784538,1749911441063,-460.0,0.00022191,4]
[365784540,1749911441072,-482.94,0.00022191,4]
[365784542,1749911441081,-460.0,0.00022191,4]
[365784544,1749911441090,-460.0,0.00022191,4]
[365784546,1749911441099,-460.0,0.00022191,4]
[365784548,1749911441109,-460.0,0.00022191,4]
[365784550,1749911441121,-2014.99,0.00022191,4]
[365784552,1749911441130,-2469.77,0.00022191,4]
[365784554,1749911441139,-1346.03,0.00022191,4]
[365784556,1749911441149,-460.0,0.00022191,4]
[365784558,1749911441158,-460.0,0.00022191,4]
[365784560,1749911441168,-460.0,0.00022191,4]
[365784562,1749911441177,-460.0,0.00022191,4]
[365784564,1749911441187,-460.0,0.00022191,4]
[365784566,1749911441196,-574.24885656,0.00022191,4]
[365784568,1749911441206,-3346.9,0.00022191,4]
[365784570,1749911441216,-460.0,0.00022191,4]
[365784571,1749911441225,-460.0,0.00022191,4]
[365784573,1749911441234,-460.0,0.00022191,4]
[365784575,1749911441243,-460.0,0.00022191,4]
[365784578,1749911441254,-550.79608152,0.00022191,4]
[365784579,1749911441263,-460.0,0.00022191,4]
[365784581,1749911441272,-460.0,0.00022191,4]
[365784583,1749911441281,-2156.97,0.00022191,4]
[365784585,1749911441290,-460.0,0.00022191,4]
[365784587,1749911441299,-522.59,0.00022191,4]
[365784589,1749911441309,-3158.19,0.00022191,4]
[365784591,1749911441319,-460.0,0.00022191,4]
[365784593,1749911441328,-460.0,0.00022191,4]
[365784595,1749911441338,-460.0,0.00022191,4]
[365784597,1749911441347,-460.0,0.00022191,4]
[365784599,1749911441357,-720.75,0.00022191,4]
[365784601,1749911441366,-1222.99,0.00022191,4]
[365784603,1749911441375,-460.0,0.00022191,2]
[365784605,1749911441385,-460.0,0.00022191,4]
[365784607,1749911441395,-460.0,0.00022191,4]
[365784609,1749911441404,-460.0,0.00022191,4]
[365784611,1749911441413,-460.0,0.00022191,4]
[365784613,1749911441423,-544.21,0.00022191,4]
[365784615,1749911441433,-460.0,0.00022191,4]
[365784617,1749911441442,-460.0,0.00022191,4]
[365784619,1749911441451,-460.0,0.00022191,4]
[365784621,1749911441461,-340.0,0.00022191,4]
[365784623,1749911441471,-460.0,0.00022191,4]
[365784625,1749911441480,-460.0,0.00022191,4]
[365784627,1749911441490,-440.0,0.00022191,4]
[365784629,1749911441499,-1729.14,0.00022191,4]
[365784631,1749911441509,-460.0,0.00022191,4]
[365784633,1749911441518,-460.0,0.00022191,4]
[365784635,1749911441528,-984.26,0.00022191,4]
[365784637,1749911441537,-215.8475328,0.00022191,4]
[365784639,1749911441547,-460.0,0.00022191,4]
[365784641,1749911441557,-157.773431,0.00022191,4]
[365784643,1749911441566,-1371.87,0.00022191,4]
[365784645,1749911441575,-2294.58,0.00022191,4]
[365784646,1749911441585,-460.0,0.00022191,4]
[365784648,1749911441594,-460.0,0.00022191,4]
[365784650,1749911441604,-460.0,0.00022191,4]
[365784653,1749911441614,-460.0,0.00022191,4]
[365784655,1749911441623,-460.0,0.00022191,4]
[365784657,1749911441633,-460.0,0.00022191,4]
[365784658,1749911441642,-420.0,0.00022191,4]
[365784660,1749911441652,-460.0,0.00022191,4]
[365784663,1749911441661,-2935.33,0.00022191,4]
[365784664,1749911441671,-460.0,0.00022191,4]
[365784666,1749911441680,-790.66,0.00022191,4]
[365784667,1749911441690,-460.0,0.00022191,4]
[365784668,1749911441699,-460.0,0.00022191,4]
[365784669,1749911441708,-460.0,0.00022191,4]
[365784670,1749911441718,-59191.77,0.000222,7]
[365784671,1749911441727,-2077.46,0.000222,7]
[365784672,1749911441737,-333.84746627,0.0002221,6]
[365784673,1749911441746,-785.08,0.00022241,2]
[365784674,1749911441755,-333.84746627,0.00022314,7]
[365784675,1749911441764,-785.08,0.00022341,3]
[365784676,1749911441856,-329.0,0.00022415,2]
[365784677,1749911441866,-333.84746627,0.00022417,7]
[365784678,1749911441876,-576.45823495,0.00022434,2]
[365784679,1749911441885,-785.08,0.00022441,6]
[365784680,1749911441895,-320.0,0.00022465,4]
[365784681,1749911441904,-460.0,0.00022465,4]
[365784682,1749911441913,-460.0,0.00022465,4]
[365784683,1749911441923,-460.0,0.00022465,4]
[365784684,1749911441932,-460.0,0.00022465,4]
[365784685,1749911441942,-460.0,0.00022465,4]
[365784686,1749911441951,-460.0,0.00022465,4]
[365784687,1749911441960,-460.0,0.00022465,4]
[365784688,1749911441970,-460.0,0.00022465,4]
[365784689,1749911441980,-670.33,0.00022465,4]
[365784690,1749911441989,-460.0,0.00022465,4]
[365784691,1749911441999,-460.0,0.00022465,4]
[365784692,1749911442008,-587.85071538,0.00022465,4]
[365784693,1749911442017,-460.0,0.00022465,4]
[365784694,1749911442027,-460.0,0.00022465,4]
[365784695,1749911442036,-563.59544499,0.00022465,4]
[365784696,1749911442046,-460.0,0.00022465,4]
[365784697,1749911442055,-460.0,0.00022465,4]
[365784698,1749911442065,-460.0,0.00022465,4]
[365784699,1749911442074,-460.0,0.00022465,4]
[365784700,1749911442083,-460.0,0.00022465,4]
[365784701,1749911442093,-377.0822292,0.00022465,4]
[365784702,1749911442103,-460.0,0.00022465,4]
[365784703,1749911442117,-460.0,0.00022465,4]
[365784704,1749911442127,-460.0,0.00022465,4]
[365784705,1749911442138,-460.0,0.00022465,4]
[365784706,1749911442147,-460.0,0.00022465,4]
[365784707,1749911442159,-460.0,0.00022465,4]
[365784708,1749911442168,-300.0,0.00022465,4]
[365784709,1749911442178,-440.0,0.00022465,4]
[365784710,1749911442191,-244.92835629,0.00022465,4]
[365784711,1749911442201,-460.0,0.00022465,4]
[365784712,1749911442210,-460.0,0.00022465,4]
[365784713,1749911442220,-376.09345987,0.00022465,4]
[365784714,1749911442229,-460.0,0.00022465,4]
[365784715,1749911442239,-400.0,0.00022465,4]
[365784716,1749911442249,-322.8358406,0.00022465,4]
[365784717,1749911442258,-380.0,0.00022465,4]
[365784718,1749911442268,-460.0,0.00022465,4]
[365784719,1749911442277,-460.0,0.00022465,4]
[365784720,1749911442287,-460.0,0.00022465,4]
[365784721,1749911442296,-460.0,0.00022465,4]
[365784722,1749911442306,-460.0,0.00022465,4]
[365784723,1749911442316,-460.0,0.00022465,4]
[365784724,1749911442326,-460.0,0.00022465,4]
[365784725,1749911442335,-460.0,0.00022465,4]
[365784726,1749911442344,-460.0,0.00022465,4]
[365784727,1749911442354,-460.0,0.00022465,4]
[365784728,1749911442363,-460.0,0.00022465,4]
[365784729,1749911442373,-460.0,0.00022465,4]
[365784730,1749911442383,-430.0,0.00022465,4]
[365784731,1749911442392,-1073.86,0.00022465,4]
[365784732,1749911442402,-460.0,0.00022465,4]
[365784733,1749911442412,-240.0,0.00022465,4]
[365784734,1749911442422,-457.49799608,0.00022465,4]
[365784735,1749911442431,-460.0,0.00022465,4]
[365784736,1749911442441,-460.0,0.00022465,4]
[365784737,1749911442451,-845.69,0.00022465,4]
[365784738,1749911442460,-460.0,0.00022465,4]
[365784739,1749911442470,-460.0,0.00022465,4]
[365784740,1749911442479,-460.0,0.00022465,4]
[365784741,1749911442488,-460.0,0.00022465,4]
[365784742,1749911442498,-278.84612861,0.00022465,4]
[365784743,1749911442507,-460.0,0.00022465,4]
[365784744,1749911442516,-460.0,0.00022465,4]
[365784745,1749911442525,-519.94,0.00022465,4]
[365784746,1749911442534,-910.98,0.00022465,4]
[365784747,1749911442544,-460.0,0.00022465,4]
[365784748,1749911442555,-176.5160786,0.00022465,4]
[365784749,1749911442564,-460.0,0.00022465,4]
[365784750,1749911442574,-347.0440653,0.00022465,4]
[365784751,1749911442583,-460.0,0.00022465,4]
[365784752,1749911442592,-460.0,0.00022465,4]
[365784753,1749911442601,-460.0,0.00022465,4]
[365784754,1749911442610,-2925.06,0.00022465,4]
[365784755,1749911442620,-460.0,0.00022465,4]
[365784756,1749911442630,-460.0,0.00022465,4]
[365784757,1749911442640,-482.94,0.00022465,4]
[365784758,1749911442651,-460.0,0.00022465,4]
[365784759,1749911442662,-435.48678114,0.00022465,4]
[365784760,1749911442671,-460.0,0.00022465,4]
[365784761,1749911442681,-509.09584801,0.00022465,4]
[365784762,1749911442691,-2014.99,0.00022465,4]
[365784763,1749911442700,-2469.77,0.00022465,4]
[365784764,1749911442710,-1346.03,0.00022465,4]
[365784765,1749911442721,-460.0,0.00022465,4]
[365784766,1749911442731,-460.0,0.00022465,4]
[365784767,1749911442740,-460.0,0.00022465,4]
[365784768,1749911442751,-460.0,0.00022465,4]
[365784769,1749911442760,-591.77333873,0.00022465,4]
[365784770,1749911442770,-3346.9,0.00022465,4]
[365784771,1749911442779,-460.0,0.00022465,4]
[365784772,1749911442789,-460.0,0.00022465,4]
[365784773,1749911442798,-460.0,0.00022465,4]
[365784774,1749911442807,-340.0,0.00022465,4]
[365784775,1749911442816,-460.0,0.00022465,4]
[365784776,1749911442827,-460.0,0.00022465,4]
[365784778,1749911442836,-2156.97,0.00022465,4]
[365784780,1749911442846,-440.0,0.00022465,4]
[365784781,1749911442855,-522.59,0.00022465,4]
[365784782,1749911442865,-3158.19,0.00022465,4]
[365784783,1749911442874,-460.0,0.00022465,4]
[365784784,1749911442883,-460.0,0.00022465,4]
[365784785,1749911442893,-460.0,0.00022465,4]
[365784786,1749911442903,-460.0,0.00022465,4]
[365784787,1749911442912,-720.75,0.00022465,4]
[365784788,1749911442923,-1222.99,0.00022465,4]
[365784789,1749911442932,-460.0,0.00022465,2]
[365784790,1749911442942,-440.0,0.00022465,4]
[365784791,1749911442951,-460.0,0.00022465,4]
[365784793,1749911442961,-460.0,0.00022465,4]
[365784794,1749911442970,-460.0,0.00022465,4]
[365784795,1749911442980,-544.21,0.00022465,4]
[365784796,1749911442989,-460.0,0.00022465,4]
[365784798,1749911442998,-460.0,0.00022465,4]
[365784799,1749911443008,-460.0,0.00022465,4]
[365784800,1749911443017,-460.0,0.00022465,4]
[365784801,1749911443026,-1729.14,0.00022465,4]
[365784803,1749911443036,-430.0,0.00022465,4]
[365784804,1749911443048,-460.0,0.00022465,4]
[365784805,1749911443058,-984.26,0.00022465,4]
[365784806,1749911443067,-460.0,0.00022465,4]
[365784807,1749911443077,-1371.87,0.00022465,4]
[365784808,1749911443086,-2294.58,0.00022465,4]
[365784809,1749911443096,-320.0,0.00022465,4]
[365784810,1749911443105,-460.0,0.00022465,4]
[365784811,1749911443118,-460.0,0.00022465,4]
[365784812,1749911443128,-420.0,0.00022465,4]
[365784813,1749911443138,-460.0,0.00022465,4]
[365784814,1749911443147,-460.0,0.00022465,4]
[365784815,1749911443156,-460.0,0.00022465,4]
[365784816,1749911443165,-2935.33,0.00022465,4]
[365784817,1749911443174,-460.0,0.00022465,4]
[365784818,1749911443184,-790.66,0.00022465,4]
[365784819,1749911443193,-420.0,0.00022465,4]
[365784821,1749911443204,-460.0,0.00022465,4]
[365784822,1749911443213,-460.0,0.00022465,4]
[365784823,1749911443223,-500.0,0.00022473,2]
[365784824,1749911443233,-170.73596121,0.00022473,2]
[365784825,1749911443242,-500.0,0.00022473,2]
[365784826,1749911443251,-500.0,0.00022473,2]
[365784827,1749911443261,-500.0,0.00022473,2]
[365784828,1749911443271,-500.0,0.00022473,2]
[365784829,1749911443280,-500.0,0.00022473,2]
[365784830,1749911443289,-500.0,0.00022473,2]
[365784831,1749911443298,-500.0,0.00022473,2]
[365784832,1749911443307,-500.0,0.00022473,2]
[365784833,1749911443317,-500.25304027,0.00022473,2]
[365784834,1749911443327,-500.0,0.00022473,2]
[365784835,1749911443337,-500.0,0.00022473,2]
[365784836,1749911443347,-268.122783,0.00022473,2]
[365784837,1749911443356,-500.0,0.00022473,2]
[365784838,1749911443366,-500.0,0.00022473,2]
[365784839,1749911443375,-1000.0,0.00022521,2]
[365784840,1749911443384,-500.0,0.00022521,2]
[365784841,1749911443394,-333.84746627,0.00022521,7]
[365784842,1749911443404,-785.08,0.00022541,3]
[365784843,1749911443413,-1023.82100794,0.00022558,2]
[365784844,1749911443422,-333.84746627,0.00022624,7]
[365784845,1749911443432,-785.08,0.00022641,4]
[365784846,1749911443442,-160.0,0.00022715,3]
[365784847,1749911443451,-333.84746627,0.00022728,7]
[365784848,1749911443461,-460.0,0.00022739,4]
[365784849,1749911443470,-460.0,0.00022739,4]
[365784850,1749911443480,-460.0,0.00022739,4]
[365784851,1749911443490,-460.0,0.00022739,4]
[365784852,1749911443499,-670.33,0.00022739,4]
[365784853,1749911443509,-460.0,0.00022739,4]
[365784854,1749911443519,-460.0,0.00022739,4]
[365784855,1749911443528,-460.0,0.00022739,4]
[365784856,1749911443539,-460.0,0.00022739,4]
[365784857,1749911443549,-460.0,0.00022739,4]
[365784859,1749911443558,-460.0,0.00022739,4]
[365784860,1749911443568,-460.0,0.00022739,4]
[365784862,1749911443578,-460.0,0.00022739,4]
[365784864,1749911443587,-460.0,0.00022739,4]
[365784865,1749911443597,-460.0,0.00022739,4]
[365784867,1749911443607,-300.70859069,0.00022739,4]
[365784868,1749911443616,-460.0,0.00022739,4]
[365784869,1749911443626,-460.0,0.00022739,4]
[365784870,1749911443636,-460.0,0.00022739,4]
[365784871,1749911443645,-460.0,0.00022739,4]
[365784872,1749911443654,-460.0,0.00022739,4]
[365784873,1749911443664,-256.44811244,0.00022739,4]
[365784874,1749911443673,-460.0,0.00022739,4]
[365784875,1749911443682,-468.19298636,0.00022739,4]
[365784876,1749911443780,-430.0,0.00022739,4]
[365784877,1749911443791,-460.0,0.00022739,4]
[365784878,1749911443800,-460.0,0.00022739,4]
[365784879,1749911443809,-460.0,0.00022739,4]
[365784880,1749911443819,-460.0,0.00022739,4]
[365784881,1749911443829,-460.0,0.00022739,4]
[365784882,1749911443838,-460.0,0.00022739,4]
[365784883,1749911443848,-460.0,0.00022739,4]
[365784884,1749911443857,-460.0,0.00022739,4]
[365784885,1749911443867,-1073.86,0.00022739,4]
[365784886,1749911443876,-460.0,0.00022739,4]
[365784887,1749911443885,-250.0,0.00022739,4]
[365784888,1749911443895,-460.0,0.00022739,4]
[365784889,1749911443904,-845.69,0.00022739,4]
[365784890,1749911443913,-240.0,0.00022739,4]
[365784891,1749911443923,-460.0,0.00022739,4]
[365784892,1749911443932,-460.0,0.00022739,4]
[365784893,1749911443944,-460.0,0.00022739,4]
[365784894,1749911443953,-460.0,0.00022739,4]
[365784895,1749911443962,-460.0,0.00022739,4]
[365784896,1749911443971,-519.94,0.00022739,4]
[365784897,1749911443981,-910.98,0.00022739,4]
[365784898,1749911443990,-460.0,0.00022739,4]
[365784899,1749911443999,-460.0,0.00022739,4]
[365784900,1749911444008,-460.0,0.00022739,4]
[365784901,1749911444018,-460.0,0.00022739,4]
[365784902,1749911444028,-460.0,0.00022739,4]
[365784903,1749911444037,-2925.06,0.00022739,4]
[365784904,1749911444047,-460.0,0.00022739,4]
[365784905,1749911444057,-460.0,0.00022739,4]
[365784906,1749911444066,-482.94,0.00022739,4]
[365784907,1749911444075,-460.0,0.00022739,4]
[365784908,1749911444084,-460.0,0.00022739,4]
[365784909,1749911444094,-2014.99,0.00022739,4]
[365784910,1749911444103,-2469.77,0.00022739,4]
[365784911,1749911444115,-1346.03,0.00022739,4]
[365784912,1749911444125,-460.0,0.00022739,4]
[365784913,1749911444135,-460.0,0.00022739,4]
[365784914,1749911444144,-460.0,0.00022739,4]
[365784915,1749911444155,-460.0,0.00022739,4]
[365784916,1749911444166,-3346.9,0.00022739,4]
[365784917,1749911444175,-460.0,0.00022739,4]
[365784918,1749911444186,-460.0,0.00022739,4]
[365784919,1749911444196,-460.0,0.00022739,4]
[365784920,1749911444205,-460.0,0.00022739,4]
[365784921,1749911444214,-2156.97,0.00022739,4]
[365784922,1749911444224,-522.59,0.00022739,4]
[365784923,1749911444233,-3158.19,0.00022739,4]
[365784924,1749911444243,-460.0,0.00022739,4]
[365784925,1749911444252,-460.0,0.00022739,4]
[365784926,1749911444262,-460.0,0.00022739,4]
[365784927,1749911444272,-460.0,0.00022739,4]
[365784928,1749911444282,-720.75,0.00022739,4]
[365784929,1749911444292,-1222.99,0.00022739,4]
[365784930,1749911444301,-595.55103077,0.00022739,2]
[365784931,1749911444311,-460.0,0.00022739,4]
[365784932,1749911444321,-460.0,0.00022739,4]
[365784933,1749911444331,-447.99541671,0.00022739,4]
[365784934,1749911444341,-544.21,0.00022739,4]
[365784935,1749911444351,-460.0,0.00022739,4]
[365784936,1749911444361,-460.0,0.00022739,4]
[365784937,1749911444371,-1729.14,0.00022739,4]
[365784938,1749911444381,-460.0,0.00022739,4]
[365784939,1749911444391,-984.26,0.00022739,4]
[365784940,1749911444400,-460.0,0.00022739,4]
[365784941,1749911444409,-1371.87,0.00022739,4]
[365784942,1749911444419,-2294.58,0.00022739,4]
[365784943,1749911444430,-460.0,0.00022739,4]
[365784944,1749911444441,-460.0,0.00022739,4]
[365784945,1749911444451,-260.0,0.00022739,4]
[365784946,1749911444460,-460.0,0.00022739,4]
[365784947,1749911444470,-460.0,0.00022739,4]
[365784948,1749911444480,-460.0,0.00022739,4]
[365784949,1749911444490,-790.66,0.00022739,4]
[365784950,1749911444498,-2935.33,0.00022739,4]
[365784951,1749911444508,-460.0,0.00022739,4]
[365784952,1749911444518,-785.08,0.00022741,7]
[365784953,1749911444527,-160.0,0.0002283,2]
[365784954,1749911444538,-160.0,0.0002283,2]
[365784955,1749911444548,-160.0,0.0002283,2]
[365784956,1749911444558,-213.28201367,0.0002283,2]
[365784957,1749911444568,-160.0,0.0002283,2]
[365784958,1749911444578,-424.40141186,0.0002283,2]
[365784959,1749911444587,-333.84746627,0.00022831,8]
[365784960,1749911444597,-785.08,0.00022841,5]
[365784961,1749911444607,-333.84746627,0.00022934,8]
[365784962,1749911444616,-785.08,0.00022941,6]
[365784963,1749911444631,-2649.71,0.0002297,2]
[365784964,1749911444646,-500.0,0.00022973,2]
[365784965,1749911444660,-500.84919256,0.00022973,2]
[365784966,1749911444672,-500.0,0.00022973,2]
[365784967,1749911444687,-500.0,0.00022973,2]
[365784968,1749911444702,-648.43924111,0.00022973,2]
[365784969,1749911444715,-500.0,0.00022973,2]
[365784970,1749911444731,-500.0,0.00022973,2]
[365784972,1749911444745,-482.42414416,0.00022973,2]
[365784973,1749911444759,-600.0,0.00022973,2]
[365784974,1749911444774,-500.0,0.00022973,2]
[365784975,1749911444787,-500.0,0.00022973,2]
[365784976,1749911444802,-500.0,0.00022973,2]
[365784977,1749911444814,-573.8401486,0.00022973,2]
[365784978,1749911444828,-500.0,0.00022973,2]
[365784979,1749911444842,-5963.37362922,0.00023,2]
[365784980,1749911444855,-826.81317095,0.00023,2]
[365784981,1749911444866,-6020.85196694,0.00023,3]
[365784982,1749911444880,-15651.68263261,0.00023,2]
[365784983,1749911444892,-79895.66762674,0.00023,20]
[365784984,1749911444907,-460.0,0.00023013,4]
[365784985,1749911444920,-400.0,0.00023013,4]
[365784986,1749911444933,-598.08,0.00023013,4]
[365784987,1749911444948,-670.33,0.00023013,4]
[365784988,1749911444962,-460.0,0.00023013,4]
[365784989,1749911444976,-460.0,0.00023013,4]
[365784990,1749911444986,-460.0,0.00023013,4]
[365784991,1749911444997,-274.224126,0.00023013,4]
[365784992,1749911445009,-460.0,0.00023013,4]
[365784993,1749911445024,-460.0,0.00023013,4]
[365784994,1749911445038,-460.0,0.00023013,4]
[365784995,1749911445049,-460.0,0.00023013,4]
[365784996,1749911445060,-460.0,0.00023013,4]
[365784997,1749911445072,-460.0,0.00023013,4]
[365784998,1749911445086,-300.0,0.00023013,4]
[365784999,1749911445097,-460.0,0.00023013,4]
[365785000,1749911445108,-460.0,0.00023013,4]
[365785001,1749911445124,-460.0,0.00023013,4]
[365785002,1749911445136,-460.0,0.00023013,4]
[365785003,1749911445147,-280.0,0.00023013,4]
[365785004,1749911445159,-320.0,0.00023013,4]
[365785005,1749911445170,-460.0,0.00023013,4]
[365785006,1749911445182,-1073.86,0.00023013,4]
[365785007,1749911445194,-460.0,0.00023013,4]
[365785008,1749911445207,-845.69,0.00023013,4]
[365785009,1749911445219,-460.0,0.00023013,4]
[365785010,1749911445232,-460.0,0.00023013,4]
[365785011,1749911445244,-460.0,0.00023013,4]
[365785012,1749911445256,-460.0,0.00023013,4]
[365785013,1749911445268,-460.0,0.00023013,4]
[365785014,1749911445280,-519.94,0.00023013,4]
[365785015,1749911445292,-910.98,0.00023013,4]
[365785016,1749911445304,-460.0,0.00023013,4]
[365785017,1749911445316,-460.0,0.00023013,4]
[365785018,1749911445327,-460.0,0.00023013,4]
[365785019,1749911445340,-460.0,0.00023013,4]
[365785020,1749911445352,-2925.06,0.00023013,4]
[365785021,1749911445364,-192.65463528,0.00023013,4]
[365785022,1749911445376,-460.0,0.00023013,4]
[365785023,1749911445388,-482.94,0.00023013,4]
[365785024,1749911445400,-460.0,0.00023013,4]
[365785025,1749911445412,-460.0,0.00023013,4]
[365785026,1749911445424,-2014.99,0.00023013,4]
[365785027,1749911445436,-2469.77,0.00023013,4]
[365785028,1749911445448,-1346.03,0.00023013,4]
[365785029,1749911445460,-460.0,0.00023013,4]
[365785030,1749911445472,-460.0,0.00023013,4]
[365785031,1749911445484,-460.0,0.00023013,4]
[365785032,1749911445496,-460.0,0.00023013,4]
[365785033,1749911445508,-3346.9,0.00023013,4]
[365785034,1749911445521,-460.0,0.00023013,4]
[365785035,1749911445533,-420.0,0.00023013,4]
[365785036,1749911445545,-460.0,0.00023013,4]
[365785037,1749911445557,-460.0,0.00023013,4]